[Event "Live Chess"]
[Site "Chess.com"]
[Date "2023.05.20"]
[Round "-"]
[White "PaulyD81"]
[Black "BJAW87"]
[Result "1-0"]
[WhiteElo "1158"]
[BlackElo "1444"]
[TimeControl "300"]
[EndTime "10:32:04 PDT"]
[Termination "PaulyD81 won by resignation"]

1. d4 {[%clk 0:04:59.6]} 1... Nf6 {[%clk 0:04:58.3]} 2. c4 {[%clk 0:04:59]} 2...
g6 {[%clk 0:04:57.4]} 3. Nc3 {[%clk 0:04:55.7]} 3... Bg7 {[%clk 0:04:56.9]} 4.
e4 {[%clk 0:04:55.1]} 4... O-O {[%clk 0:04:55.7]} 5. Nf3 {[%clk 0:04:54.2]} 5...
d6 {[%clk 0:04:51.5]} 6. Be2 {[%clk 0:04:52.9]} 6... Nbd7 {[%clk 0:04:50.1]} 7.
Bg5 {[%clk 0:04:49.9]} 7... c5 {[%clk 0:04:48.7]} 8. d5 {[%clk 0:04:44.7]} 8...
Nh5 {[%clk 0:04:42.1]} 9. O-O {[%clk 0:04:25.5]} 9... e5 {[%clk 0:04:28.2]} 10.
Bxd8 {[%clk 0:04:23.4]} 10... Rxd8 {[%clk 0:04:22]} 11. Ng5 {[%clk 0:04:21.3]}
1-0

[Event "Live Chess"]
[Site "Chess.com"]
[Date "2023.05.20"]
[Round "-"]
[White "boilerboy1"]
[Black "siddu198"]
[Result "0-1"]
[WhiteElo "1085"]
[BlackElo "1641"]
[TimeControl "300"]
[EndTime "10:32:05 PDT"]
[Termination "siddu198 won by checkmate"]

1. e4 {[%clk 0:04:53.2]} 1... e5 {[%clk 0:04:59.2]} 2. Nf3 {[%clk 0:04:51.6]}
2... Nc6 {[%clk 0:04:58.9]} 3. Nc3 {[%clk 0:04:49.5]} 3... Bc5 {[%clk
0:04:57.9]} 4. Be2 {[%clk 0:04:47.7]} 4... d6 {[%clk 0:04:57.5]} 5. O-O {[%clk
0:04:45.7]} 5... Nf6 {[%clk 0:04:57.1]} 6. d3 {[%clk 0:04:43.9]} 6... O-O {[%clk
0:04:56.7]} 7. Bg5 {[%clk 0:04:41.3]} 7... h6 {[%clk 0:04:56.4]} 8. Bh4 {[%clk
0:04:35.8]} 8... Be6 {[%clk 0:04:54.3]} 9. Re1 {[%clk 0:04:30.8]} 9... Ne7
{[%clk 0:04:51.2]} 10. Bf1 {[%clk 0:04:22.7]} 10... Ng6 {[%clk 0:04:48.8]} 11.
Bg3 {[%clk 0:04:20.2]} 11... Nh5 {[%clk 0:04:46.4]} 12. Nd5 {[%clk 0:04:10.3]}
12... Bxd5 {[%clk 0:04:44.6]} 13. exd5 {[%clk 0:04:08]} 13... Nxg3 {[%clk
0:04:43.5]} 14. hxg3 {[%clk 0:04:06]} 14... Qf6 {[%clk 0:04:40]} 15. c3 {[%clk
0:04:03.1]} 15... c6 {[%clk 0:04:34.6]} 16. dxc6 {[%clk 0:04:00.6]} 16... bxc6
{[%clk 0:04:33.6]} 17. Qa4 {[%clk 0:03:55.4]} 17... d5 {[%clk 0:04:20.6]} 18. d4
{[%clk 0:03:50.1]} 18... exd4 {[%clk 0:04:19.6]} 19. cxd4 {[%clk 0:03:45.6]}
19... Bb6 {[%clk 0:04:17.1]} 20. Rac1 {[%clk 0:03:29.1]} 20... Rac8 {[%clk
0:03:56.8]} 21. Ne5 {[%clk 0:02:50.9]} 21... Nxe5 {[%clk 0:03:52.5]} 22. Rxe5
{[%clk 0:02:47.1]} 22... c5 {[%clk 0:03:31.9]} 23. Rxd5 {[%clk 0:02:37.5]} 23...
cxd4 {[%clk 0:03:17.9]} 24. Rxc8 {[%clk 0:02:18.8]} 24... Rxc8 {[%clk
0:03:15.8]} 25. Qd1 {[%clk 0:02:16.3]} 25... d3 {[%clk 0:03:09.4]} 26. Bxd3
{[%clk 0:01:44.4]} 26... Qxf2+ {[%clk 0:02:49]} 27. Kh2 {[%clk 0:01:42.5]} 27...
g6 {[%clk 0:02:37.1]} 28. b3 {[%clk 0:01:31]} 28... Be3 {[%clk 0:02:20.6]} 29.
Be4 {[%clk 0:01:27.4]} 29... Rc1 {[%clk 0:02:06.5]} 30. Rd8+ {[%clk 0:00:41.7]}
30... Kg7 {[%clk 0:01:47.3]} 31. Qf3 {[%clk 0:00:18.3]} 31... Rh1+ {[%clk
0:01:33.7]} 32. Kxh1 {[%clk 0:00:13]} 32... Qg1# {[%clk 0:01:33.6]} 0-1

[Event "Live Chess"]
[Site "Chess.com"]
[Date "2023.05.20"]
[Round "-"]
[White "BogdanBeleiUkraine"]
[Black "MMmaaxxxx"]
[Result "0-1"]
[WhiteElo "1240"]
[BlackElo "2022"]
[TimeControl "300"]
[EndTime "10:32:06 PDT"]
[Termination "MMmaaxxxx won on time"]

1. e4 {[%clk 0:04:56.5]} 1... c6 {[%clk 0:04:59]} 2. Nc3 {[%clk 0:04:55.4]} 2...
d5 {[%clk 0:04:57.4]} 3. exd5 {[%clk 0:04:53.4]} 3... cxd5 {[%clk 0:04:57.3]} 4.
Bb5+ {[%clk 0:04:52.3]} 4... Nc6 {[%clk 0:04:56.1]} 5. d3 {[%clk 0:04:49.3]}
5... Nf6 {[%clk 0:04:53.1]} 6. Nge2 {[%clk 0:04:47.4]} 6... Bg4 {[%clk
0:04:50.8]} 7. h3 {[%clk 0:04:45.5]} 7... Bh5 {[%clk 0:04:48.9]} 8. O-O {[%clk
0:04:43.6]} 8... e6 {[%clk 0:04:47.7]} 9. Qe1 {[%clk 0:04:41.5]} 9... a6 {[%clk
0:04:46.1]} 10. Ba4 {[%clk 0:04:39.6]} 10... b5 {[%clk 0:04:45]} 11. Bb3 {[%clk
0:04:38.3]} 11... Bd6 {[%clk 0:04:43.9]} 12. Ng3 {[%clk 0:04:32.6]} 12... Bg6
{[%clk 0:04:40.8]} 13. f4 {[%clk 0:04:27.4]} 13... Qb6+ {[%clk 0:04:32.6]} 14.
Kh1 {[%clk 0:04:22.8]} 14... h5 {[%clk 0:04:28.5]} 15. f5 {[%clk 0:04:18.3]}
15... h4 {[%clk 0:04:23.7]} 16. fxg6 {[%clk 0:04:16]} 16... hxg3 {[%clk
0:04:19.9]} 17. gxf7+ {[%clk 0:04:14.6]} 17... Kxf7 {[%clk 0:04:19.8]} 18. Bg5
{[%clk 0:04:07.1]} 18... Rh5 {[%clk 0:04:08]} 19. Bf4 {[%clk 0:03:56.3]} 19...
Bxf4 {[%clk 0:03:33.3]} 20. Rxf4 {[%clk 0:03:54.5]} 20... Rg5 {[%clk 0:03:32.5]}
21. Ne2 {[%clk 0:03:39.8]} 21... Qe3 {[%clk 0:03:25.5]} 22. Rf3 {[%clk
0:03:33.6]} 22... Qe5 {[%clk 0:03:19.2]} 23. Nxg3 {[%clk 0:03:28]} 23... Rh8
{[%clk 0:03:06.1]} 24. Qxe5 {[%clk 0:03:24.2]} 24... Nxe5 {[%clk 0:03:05.3]} 25.
Re3 {[%clk 0:03:16.5]} 25... Neg4 {[%clk 0:02:53.4]} 26. Rf3 {[%clk 0:03:12.5]}
26... Ne5 {[%clk 0:02:49.6]} 27. Re3 {[%clk 0:03:07.8]} 27... d4 {[%clk
0:02:49]} 28. Re2 {[%clk 0:02:59.9]} 28... Nf3 {[%clk 0:02:26.4]} 29. Bxe6+
{[%clk 0:02:54.4]} 29... Kf8 {[%clk 0:02:22.9]} 30. Rf1 {[%clk 0:02:41.6]} 30...
Rxg3 {[%clk 0:02:20]} 31. Rxf3 {[%clk 0:02:39.1]} 31... Rg5 {[%clk 0:02:10.4]}
32. Bb3 {[%clk 0:02:26.5]} 32... a5 {[%clk 0:02:06.5]} 33. a4 {[%clk 0:02:24]}
33... bxa4 {[%clk 0:01:58.8]} 34. Bxa4 {[%clk 0:02:22.8]} 34... Kf7 {[%clk
0:01:57.5]} 35. Rf4 {[%clk 0:02:18]} 35... Kg6 {[%clk 0:01:54.2]} 36. Rxd4
{[%clk 0:02:15.3]} 36... Rc8 {[%clk 0:01:53]} 37. c3 {[%clk 0:02:09.7]} 37...
Rgc5 {[%clk 0:01:42.3]} 38. Rd6 {[%clk 0:02:03.4]} 38... Rb8 {[%clk 0:01:37]}
39. d4 {[%clk 0:01:53.4]} 39... Rc4 {[%clk 0:01:31.1]} 40. Bc6 {[%clk
0:01:45.7]} 40... a4 {[%clk 0:01:23.2]} 41. Bf3 {[%clk 0:01:44]} 41... a3 {[%clk
0:01:10]} 42. bxa3 {[%clk 0:01:41.1]} 42... Rxc3 {[%clk 0:01:09.4]} 43. Ra2
{[%clk 0:01:29.2]} 43... Rb5 {[%clk 0:00:46.1]} 44. a4 {[%clk 0:01:25.3]} 44...
Ra5 {[%clk 0:00:45]} 45. d5 {[%clk 0:01:15.2]} 45... Rc1+ {[%clk 0:00:41.6]} 46.
Kh2 {[%clk 0:01:13.1]} 46... Rc4 {[%clk 0:00:41.1]} 47. Rc6 {[%clk 0:01:09.5]}
47... Raxa4 {[%clk 0:00:35.9]} 48. Rxa4 {[%clk 0:01:06.6]} 48... Rxa4 {[%clk
0:00:35]} 49. d6 {[%clk 0:01:05]} 49... Rd4 {[%clk 0:00:34.6]} 50. h4 {[%clk
0:00:53.7]} 50... Rxh4+ {[%clk 0:00:31.7]} 51. Kg3 {[%clk 0:00:51.8]} 51... Rd4
{[%clk 0:00:31.4]} 52. Kf2 {[%clk 0:00:47.1]} 52... Kf5 {[%clk 0:00:27.1]} 53.
Ke3 {[%clk 0:00:44.5]} 53... Rb4 {[%clk 0:00:20.2]} 54. Rc5+ {[%clk 0:00:42.2]}
54... Ke6 {[%clk 0:00:18.9]} 55. Rc6 {[%clk 0:00:34.4]} 55... Rb3+ {[%clk
0:00:13.5]} 56. Kf2 {[%clk 0:00:32.3]} 56... Rb2+ {[%clk 0:00:12.8]} 57. Kg3
{[%clk 0:00:29.5]} 57... Rb3 {[%clk 0:00:12]} 58. Ra6 {[%clk 0:00:26.5]} 58...
Kd7 {[%clk 0:00:08.9]} 59. Kf2 {[%clk 0:00:20.2]} 59... Rd3 {[%clk 0:00:06.8]}
60. Bc6+ {[%clk 0:00:16.6]} 60... Kxd6 {[%clk 0:00:05.7]} 61. Be4+ {[%clk
0:00:14.6]} 61... Ke5 {[%clk 0:00:05.6]} 62. Bxd3 {[%clk 0:00:13.6]} 62... Kf4
{[%clk 0:00:05.5]} 63. Be2 {[%clk 0:00:12.9]} 63... Kg5 {[%clk 0:00:05.4]} 64.
Ra5+ {[%clk 0:00:11.6]} 64... Kh6 {[%clk 0:00:04.8]} 65. Bd3 {[%clk 0:00:09.5]}
65... g5 {[%clk 0:00:03]} 66. g3 {[%clk 0:00:09.1]} 66... Kg7 {[%clk 0:00:02.9]}
67. g4 {[%clk 0:00:08.3]} 67... Nh7 {[%clk 0:00:02.3]} 68. Bf5 {[%clk
0:00:07.1]} 68... Nf6 {[%clk 0:00:01.6]} 69. Kg3 {[%clk 0:00:06.2]} 69... Kf7
{[%clk 0:00:01.2]} 70. Kf3 {[%clk 0:00:05.4]} 70... Ke7 {[%clk 0:00:01.1]} 71.
Ke3 {[%clk 0:00:04.7]} 71... Kd6 {[%clk 0:00:01]} 72. Kd3 {[%clk 0:00:04.1]}
72... Ke7 {[%clk 0:00:00.9]} 73. Kc4 {[%clk 0:00:03.3]} 73... Kf7 {[%clk
0:00:00.8]} 74. Kd4 {[%clk 0:00:02.5]} 74... Kg7 {[%clk 0:00:00.7]} 75. Kc5
{[%clk 0:00:01.9]} 75... Kf7 {[%clk 0:00:00.6]} 76. Kc6 {[%clk 0:00:01.3]} 76...
Ke7 {[%clk 0:00:00.5]} 77. Kb6 {[%clk 0:00:00.6]} 77... Ne8 {[%clk 0:00:00.4]}
0-1

[Event "Live Chess"]
[Site "Chess.com"]
[Date "2023.05.20"]
[Round "-"]
[White "Bot_Boy"]
[Black "Brooms1989"]
[Result "0-1"]
[WhiteElo "325"]
[BlackElo "986"]
[TimeControl "300"]
[EndTime "10:32:13 PDT"]
[Termination "Brooms1989 won on time"]

1. Nf3 {[%clk 0:04:57.5]} 1... d5 {[%clk 0:04:51.1]} 2. e3 {[%clk 0:04:48.3]}
2... Nf6 {[%clk 0:04:49.1]} 3. d4 {[%clk 0:04:47.1]} 3... Bg4 {[%clk 0:04:44.7]}
4. Bb5+ {[%clk 0:04:43.6]} 4... c6 {[%clk 0:04:43.4]} 5. Bd3 {[%clk 0:04:39.8]}
5... e6 {[%clk 0:04:40.8]} 6. O-O {[%clk 0:04:30.5]} 6... Bd6 {[%clk 0:04:37.4]}
7. Be2 {[%clk 0:04:19]} 7... O-O {[%clk 0:04:34]} 8. Ne5 {[%clk 0:04:13.6]} 8...
Bxe2 {[%clk 0:04:31.7]} 9. Qxe2 {[%clk 0:04:12.6]} 9... Nbd7 {[%clk 0:04:31.2]}
10. f4 {[%clk 0:04:05.4]} 10... Ne4 {[%clk 0:04:27.7]} 11. f5 {[%clk 0:03:47.3]}
11... Bxe5 {[%clk 0:04:14]} 12. dxe5 {[%clk 0:03:38.5]} 12... Nxe5 {[%clk
0:04:13.9]} 13. Nc3 {[%clk 0:03:24.4]} 13... Qd7 {[%clk 0:04:03.6]} 14. Bd2
{[%clk 0:03:02.4]} 14... Nxd2 {[%clk 0:03:50.1]} 15. Qxd2 {[%clk 0:02:59.9]}
15... exf5 {[%clk 0:03:49.6]} 16. Rf4 {[%clk 0:02:37.3]} 16... Ng6 {[%clk
0:03:39.6]} 17. Rf3 {[%clk 0:02:05.3]} 17... Rfe8 {[%clk 0:03:34.7]} 18. Re1
{[%clk 0:01:50.1]} 18... Re7 {[%clk 0:03:28.4]} 19. Na4 {[%clk 0:01:47.8]} 19...
b6 {[%clk 0:03:26]} 20. b3 {[%clk 0:01:37.8]} 20... Rae8 {[%clk 0:03:21.8]} 21.
c4 {[%clk 0:01:27.1]} 21... f4 {[%clk 0:03:20.2]} 22. c5 {[%clk 0:01:10.9]}
22... fxe3 {[%clk 0:03:10.4]} 23. Rfxe3 {[%clk 0:01:01.1]} 23... Rxe3 {[%clk
0:03:08.2]} 24. Rxe3 {[%clk 0:00:59.5]} 24... Rxe3 {[%clk 0:03:06]} 25. Qxe3
{[%clk 0:00:55.3]} 25... b5 {[%clk 0:03:04.5]} 26. Nc3 {[%clk 0:00:44.2]} 26...
Qe6 {[%clk 0:02:59.9]} 27. Qxe6 {[%clk 0:00:35.1]} 27... fxe6 {[%clk 0:02:59.8]}
28. Ne2 {[%clk 0:00:24.9]} 28... Ne5 {[%clk 0:02:58.4]} 29. Nf4 {[%clk
0:00:20.2]} 29... Kf7 {[%clk 0:02:55.5]} 30. a4 {[%clk 0:00:16.5]} 30... g5
{[%clk 0:02:44.8]} 31. Ne2 {[%clk 0:00:10.8]} 31... Nd3 {[%clk 0:02:42.1]} 32.
g3 {[%clk 0:00:05.8]} 32... Nxc5 {[%clk 0:02:40.4]} 33. axb5 {[%clk 0:00:04]}
33... cxb5 {[%clk 0:02:39.2]} 34. h4 {[%clk 0:00:02.2]} 34... gxh4 {[%clk
0:02:37.7]} 35. gxh4 {[%clk 0:00:01.7]} 35... Nxb3 {[%clk 0:02:37.3]} 36. Nf4
{[%clk 0:00:00.8]} 36... a5 {[%clk 0:02:36.1]} 0-1

[Event "Live Chess"]
[Site "Chess.com"]
[Date "2023.05.20"]
[Round "-"]
[White "BostonStrangler"]
[Black "GMHarry-youtube"]
[Result "1-0"]
[WhiteElo "2086"]
[BlackElo "2154"]
[TimeControl "300"]
[EndTime "10:32:13 PDT"]
[Termination "BostonStrangler won by checkmate"]

1. Nf3 {[%clk 0:04:58]} 1... e5 {[%clk 0:04:58.6]} 2. Nxe5 {[%clk 0:04:55.7]}
2... Nc6 {[%clk 0:04:57.2]} 3. Nf3 {[%clk 0:04:54.3]} 3... d5 {[%clk 0:04:55.2]}
4. g3 {[%clk 0:04:49]} 4... Nf6 {[%clk 0:04:52.3]} 5. Bg2 {[%clk 0:04:47.9]}
5... Bd6 {[%clk 0:04:51.7]} 6. b3 {[%clk 0:04:41.8]} 6... O-O {[%clk 0:04:51.6]}
7. Bb2 {[%clk 0:04:40.7]} 7... Be6 {[%clk 0:04:51]} 8. O-O {[%clk 0:04:39]} 8...
Be7 {[%clk 0:04:47.2]} 9. d3 {[%clk 0:04:35.7]} 9... Nd7 {[%clk 0:04:45.8]} 10.
Nbd2 {[%clk 0:04:33.9]} 10... Bf6 {[%clk 0:04:45.1]} 11. Qc1 {[%clk 0:04:32.6]}
11... Bxb2 {[%clk 0:04:43.2]} 12. Qxb2 {[%clk 0:04:30.6]} 12... Qf6 {[%clk
0:04:42.4]} 13. Qxf6 {[%clk 0:04:28.7]} 13... Nxf6 {[%clk 0:04:42.3]} 14. c4
{[%clk 0:04:24.9]} 14... dxc4 {[%clk 0:04:40.9]} 15. Nxc4 {[%clk 0:04:22.5]}
15... Bxc4 {[%clk 0:04:38.6]} 16. bxc4 {[%clk 0:04:09.9]} 16... b6 {[%clk
0:04:37]} 17. Nd2 {[%clk 0:03:52.6]} 17... Nd4 {[%clk 0:04:27.2]} 18. Bxa8
{[%clk 0:03:50.2]} 18... Nxe2+ {[%clk 0:04:26.5]} 19. Kg2 {[%clk 0:03:49.2]}
19... Rxa8 {[%clk 0:04:24.3]} 20. Rfe1 {[%clk 0:03:47.5]} 20... Nd4 {[%clk
0:04:21.9]} 21. Re7 {[%clk 0:03:44.8]} 21... c5 {[%clk 0:04:18]} 22. Ne4 {[%clk
0:03:43.1]} 22... Nxe4 {[%clk 0:04:08.6]} 23. Rxe4 {[%clk 0:03:41.7]} 23... f5
{[%clk 0:04:07.6]} 24. Re7 {[%clk 0:03:38.1]} 24... a6 {[%clk 0:04:03.1]} 25.
Rae1 {[%clk 0:03:36.1]} 25... b5 {[%clk 0:03:59]} 26. Re8+ {[%clk 0:03:33.6]}
26... Rxe8 {[%clk 0:03:56.8]} 27. Rxe8+ {[%clk 0:03:33.5]} 27... Kf7 {[%clk
0:03:56.6]} 28. Ra8 {[%clk 0:03:27.4]} 28... b4 {[%clk 0:03:39.2]} 29. Ra7+
{[%clk 0:03:21.2]} 29... Kf8 {[%clk 0:03:36.7]} 30. Rxa6 {[%clk 0:03:19.3]}
30... Ne2 {[%clk 0:03:34]} 31. Rc6 {[%clk 0:03:12.2]} 31... Nc3 {[%clk
0:03:32.7]} 32. Rxc5 {[%clk 0:03:06.6]} 32... Nxa2 {[%clk 0:03:25.8]} 33. Rxf5+
{[%clk 0:03:05.3]} 33... Ke7 {[%clk 0:03:24.4]} 34. Rb5 {[%clk 0:02:54.7]} 34...
Kd6 {[%clk 0:03:22.7]} 35. d4 {[%clk 0:02:51.6]} 35... Kc6 {[%clk 0:03:21.1]}
36. d5+ {[%clk 0:02:49.9]} 36... Kd6 {[%clk 0:03:06.4]} 37. f4 {[%clk
0:02:43.1]} 37... h6 {[%clk 0:03:00]} 38. g4 {[%clk 0:02:41.6]} 38... g6 {[%clk
0:02:55.5]} 39. h4 {[%clk 0:02:40]} 39... Kd7 {[%clk 0:02:42.1]} 40. f5 {[%clk
0:02:36.4]} 40... gxf5 {[%clk 0:02:39.9]} 41. gxf5 {[%clk 0:02:34.4]} 41... Ke7
{[%clk 0:02:39.8]} 42. Rb6 {[%clk 0:02:30.2]} 42... Kf7 {[%clk 0:02:36.4]} 43.
Kf3 {[%clk 0:02:25.2]} 43... Kg7 {[%clk 0:02:20.5]} 44. Kg4 {[%clk 0:02:22.7]}
44... Kh7 {[%clk 0:02:14.3]} 45. Rb7+ {[%clk 0:02:21]} 45... Kg8 {[%clk
0:02:12.9]} 46. Kh5 {[%clk 0:02:19.1]} 46... b3 {[%clk 0:02:11.8]} 47. Rxb3
{[%clk 0:02:15.7]} 47... Nc1 {[%clk 0:02:10.1]} 48. Rb7 {[%clk 0:02:12.4]} 48...
Nd3 {[%clk 0:02:06.4]} 49. Kg6 {[%clk 0:02:00.4]} 49... Ne5+ {[%clk 0:02:03.6]}
50. Kxh6 {[%clk 0:01:58.7]} 50... Nf7+ {[%clk 0:02:00.4]} 51. Rxf7 {[%clk
0:01:55.9]} 51... Kxf7 {[%clk 0:01:52.7]} 52. c5 {[%clk 0:01:54.7]} 52... Kf6
{[%clk 0:01:50.7]} 53. c6 {[%clk 0:01:53.1]} 53... Kf7 {[%clk 0:01:50.2]} 54. c7
{[%clk 0:01:51.3]} 54... Ke7 {[%clk 0:01:49.7]} 55. f6+ {[%clk 0:01:50.1]} 55...
Kd7 {[%clk 0:01:43.3]} 56. f7 {[%clk 0:01:48.2]} 56... Ke7 {[%clk 0:01:41.8]}
57. f8=Q+ {[%clk 0:01:46.8]} 57... Kxf8 {[%clk 0:01:39]} 58. c8=Q+ {[%clk
0:01:46.2]} 58... Kf7 {[%clk 0:01:38.6]} 59. Qe6+ {[%clk 0:01:43.9]} 59... Kf8
{[%clk 0:01:38.1]} 60. Qd7 {[%clk 0:01:41.4]} 60... Kg8 {[%clk 0:01:36.6]} 61.
Qg7# {[%clk 0:01:40.2]} 1-0

[Event "Live Chess"]
[Site "Chess.com"]
[Date "2023.05.20"]
[Round "-"]
[White "tpm07"]
[Black "Fazer180"]
[Result "0-1"]
[WhiteElo "1987"]
[BlackElo "1712"]
[TimeControl "300"]
[EndTime "10:32:15 PDT"]
[Termination "Fazer180 won by resignation"]

1. d4 {[%clk 0:04:54.8]} 1... e6 {[%clk 0:04:59.9]} 2. g3 {[%clk 0:04:51.3]}
2... d5 {[%clk 0:04:59.8]} 3. c4 {[%clk 0:04:48.4]} 3... Nf6 {[%clk 0:04:56.4]}
4. Nf3 {[%clk 0:04:45.7]} 4... c5 {[%clk 0:04:54.9]} 5. cxd5 {[%clk 0:04:42.7]}
5... Nxd5 {[%clk 0:04:51.9]} 6. Bg2 {[%clk 0:04:41.7]} 6... Nc6 {[%clk
0:04:48.3]} 7. O-O {[%clk 0:04:37]} 7... cxd4 {[%clk 0:04:42.1]} 8. Nxd4 {[%clk
0:04:34.3]} 8... Bc5 {[%clk 0:04:36.8]} 9. Nxc6 {[%clk 0:04:31.6]} 9... bxc6
{[%clk 0:04:35.1]} 10. b3 {[%clk 0:04:25.4]} 10... O-O {[%clk 0:04:26.6]} 11.
Bb2 {[%clk 0:04:24.9]} 11... f6 {[%clk 0:04:20.4]} 12. Nd2 {[%clk 0:04:11.5]}
12... Ba6 {[%clk 0:04:13.9]} 13. Re1 {[%clk 0:04:06.2]} 13... e5 {[%clk
0:04:10.6]} 14. Rc1 {[%clk 0:03:59.6]} 14... Qb6 {[%clk 0:04:09.3]} 15. Nc4
{[%clk 0:03:54.2]} 15... Bxc4 {[%clk 0:04:04.6]} 16. Rxc4 {[%clk 0:03:54.1]}
16... Bxf2+ {[%clk 0:04:03.3]} 17. Kh1 {[%clk 0:03:51.3]} 17... Bxe1 {[%clk
0:04:01.7]} 18. Qxe1 {[%clk 0:03:51.2]} 18... Ne3 {[%clk 0:03:47.8]} 19. Rxc6
{[%clk 0:03:40.1]} 19... Nxg2 {[%clk 0:03:46.4]} 20. Rxb6 {[%clk 0:03:37.9]}
20... Nxe1 {[%clk 0:03:45.3]} 21. Rc6 {[%clk 0:03:29.8]} 21... Rac8 {[%clk
0:03:37.1]} 0-1

[Event "Live Chess"]
[Site "Chess.com"]
[Date "2023.05.20"]
[Round "-"]
[White "CheckString"]
[Black "defenderalist"]
[Result "0-1"]
[WhiteElo "1226"]
[BlackElo "1583"]
[TimeControl "300"]
[EndTime "10:32:26 PDT"]
[Termination "defenderalist won by resignation"]

1. e4 {[%clk 0:04:58.5]} 1... e6 {[%clk 0:04:55.4]} 2. d4 {[%clk 0:04:56.1]}
2... b6 {[%clk 0:04:54.7]} 3. c4 {[%clk 0:04:51.3]} 3... Bb7 {[%clk 0:04:53.9]}
4. Nc3 {[%clk 0:04:49.9]} 4... Nf6 {[%clk 0:04:51.7]} 5. Bd3 {[%clk 0:04:47.5]}
5... Bb4 {[%clk 0:04:49.7]} 6. Ne2 {[%clk 0:04:45.2]} 6... O-O {[%clk
0:04:47.2]} 7. O-O {[%clk 0:04:44.3]} 7... d5 {[%clk 0:04:43.9]} 8. cxd5 {[%clk
0:04:37.6]} 8... exd5 {[%clk 0:04:39.8]} 9. e5 {[%clk 0:04:37.2]} 9... Ne4
{[%clk 0:04:25]} 10. Nxe4 {[%clk 0:04:28.6]} 10... dxe4 {[%clk 0:04:22.6]} 11.
Bc2 {[%clk 0:04:27.4]} 11... c5 {[%clk 0:04:17.5]} 12. Be3 {[%clk 0:04:08.9]}
12... cxd4 {[%clk 0:04:14.9]} 13. Bxd4 {[%clk 0:04:08.8]} 13... Nc6 {[%clk
0:04:04.1]} 14. a3 {[%clk 0:04:03.7]} 14... Nxd4 {[%clk 0:04:01.6]} 15. Nxd4
{[%clk 0:03:56.8]} 15... Bc5 {[%clk 0:03:55.6]} 16. Ne2 {[%clk 0:03:50.1]} 16...
Qg5 {[%clk 0:03:53.7]} 17. g3 {[%clk 0:03:36.5]} 17... e3 {[%clk 0:03:50.6]} 18.
f4 {[%clk 0:03:31.9]} 18... Qh5 {[%clk 0:03:45.1]} 19. b4 {[%clk 0:03:26.1]}
19... Qh3 {[%clk 0:03:42.7]} 0-1